Workbook

Sheet Start

Sheet Anaerobic lagoon (BAU)
A1: Anaerobic Lagoon (single step process)
B3: Input | G3: Default Value | M3: Output
B4: Category | C4: Item | D4: Unit | E4: Value | G4: Item | H4: Unit | I4: Value | J4: Source | K4: Reference | M4: Category | N4: Item | O4: Unit | P4: Value | Q4: Unit | R4: Value
B5: Waste water treatment | C5: Amount of waste water | D5: m3/day | E5: =Anaerobic!$G$6 -> 35965 | G5: Oxygen Demand (OD) removal efficiency at first step | H5: % | I5: =Anaerobic!$G$9 -> 50 | J5: MOJ | M5: Waste water treatment | N5: COD after | O5: g/m3 | P5: =E16 -> 753.5 | Q5: kg/day | R5: =P5*$E$5/1000 -> 27099.6275 | S5: this calculation based on EPA equation
C6: COD concentration of raw water | D6: mg/L | E6: =Anaerobic!$G$7 -> 1507 | G6: COD/BOD | I6: 1.9 | J6: calculation (supporting details on report) | N6: COD removed | O6: g/m3 | P6: =E15 -> 753.5 | Q6: kg/day | R6: =P6*$E$5/1000 -> 27099.6275
C7: Total Nitrogen (TN) | D7: mg/L | E7: =Anaerobic!$G$8 -> 120.56 | G7: Amount gas generated/kg COD removal (anaerobic process) | H7: m3/kg COD removal | I7: 0.15 | J7: MOJ | N7: COD removal | O7: % | P7: =P6/E6*100 -> 50 | Q7: % | R7: =P6/E6*100 -> 50
B8: COD removal from sludge | C8: Generated amount of sludge | D8: kgDS/day | E8: =Anaerobic!$G$14 -> 5306 | G8: Conversion factor | H8: kg CH4/m3 | I8: 0.714 | J8: MOJ | N8: CO2 emission | O8: ton/h | P8: =((10^(-6)*E13*E6*(I5/100)*I17*((1-I19*I21)*(1-I20)))) -> 0.6707157806 | Q8: kg/day | R8: =P8*1000*24 -> 16097.17873
B9: Electricity use | C9: Electricity consumption | D9: kWh/day | E9: =Anaerobic!$G$15 -> 42561 | G9: CH4 Global Warming Potential | H9: kg CO2 e/kg CH4 | I9: 21 | J9: IPCC | N9: CH4 emission | O9: ton/h | P9: =((10^(-6)*E13*E6*(I5/100)*I18*((I19*I21)*(1-I20)))) -> 0.2642213681 | Q9: kg/day | R9: =P9*1000*24 -> 6341.312835
G10: N2O | H10: kg CO2 e/kg N2O | I10: 298 | J10: IPCC | N10: N2O emission | O10: ton/h | P10: =E13*E7*I22*(44/28)*(10^(-6)) -> 0.001419504298 | Q10: kg/day | R10: =P10*1000*24 -> 34.06810314
B11: Calculation | G11: COD degradation rate at up to discharge point | H11: % | I11: =Anaerobic!$G$10 -> 50 | J11: MOJ | M11: At up to discharge point | N11: COD after | O11: g/m3 | P11: =E19 -> 376.75 | Q11: kg/day | R11: =P11*$E$5/1000 -> 13549.81375 | S11: this calculation based on IGES DATA
B12: Category | C12: Item | D12: Unit | E12: Value | G12: COD degradation rate at discharge point | H12: % | I12: =Anaerobic!$G$11 -> 10 | J12: MOJ | N12: GHG Emission | O12: kg/day | P12: =E18*E5*I13*I14*I9/1000 -> 56169.39792 | Q12: kg/day | R12: =P12 -> 56169.39792
B13: Wastewater treatment (Anaerobic lagoon - one step) | C13: Waste water influent flow rate (Qww) | D13: m3/h | E13: =E5/24 -> 1498.541667 | G13: Maximum methane formation potential | H13: kgCH4/kgCOD | I13: =Anaerobic!$G$12 -> 0.21 | J13: MOJ | M13: At dischagre point | N13: COD after | O13: g/m3 | P13: =E22 -> 339.075 | Q13: kg/day | R13: =P13*$E$5/1000 -> 12194.83237
C14: BOD5 influent | D14: g/m3 | E14: =E6/I6 -> 793.1578947 | G14: Model correction coeficient | I14: 0.94 | J14: MOJ | N14: GHG Emission | O14: kg/day | P14: =E21*E5*I13*I14*I9/1000 -> 5616.939792 | Q14: kg/day | R14: =P14 -> 5616.939792
C15: COD removed | D15: g/m3 | E15: =E6*I5/100 -> 753.5 | G15: Methane emission/kg generated sludge | H15: kgCH4/kgDS | I15: =Anaerobic!$G$13 -> 0.15 | J15: MOJ | M15: From Sludge | N15: GHG Emission | O15: kg CO2e/day | P15: =E8*I15*I9 -> 16713.9 | Q15: kg/day | R15: =P15 -> 16713.9
C16: COD Effluent | D16: g/m3 | E16: =E6-E15 -> 753.5 | G16: Electricity emission factor | H16: kgCO2/kWh | I16: 0.754 | J16: ADB, 2017 (also used by MOJ) | M16: By Electricity Used | N16: CO2 emission | O16: kg CO2e/day | P16: =E9*I16 -> 32090.994 | Q16: kg/day | R16: =P16 -> 32090.994
C17: BOD5 effluent | D17: g/m3 | E17: =E16/I6 -> 396.5789474 | G17: CF CO2 | H17: g CO2/g Oxygen demand | I17: 1.375 | J17: EPA | N17: GHG Emission | O17: kg CO2e/day | P17: =P16 -> 32090.994 | Q17: kg/day | R17: =P17 -> 32090.994
B18: At up to discharge point | C18: COD removed | D18: g/m3 | E18: =E16*(I11/100) -> 376.75 | G18: CH CH4 | H18: g CH4/g Oxygen demand | I18: 0.5 | J18: EPA | M18: GHG emission | N18: From total CO2 emisson | O18: kg CO2e/day | P18: =R8+R16 -> 48188.17274
C19: COD Effluent | D19: g/m3 | E19: =E16-E18 -> 376.75 | G19: MCF ww for anaerobic lagoon | I19: 0.8 | J19: IPCC | N19: From total CH4 emisson | O19: kg CO2e/day | P19: =(R9*21)+R12+R14+R15 -> 211667.8072
C20: BOD5 effluent | D20: g/m3 | E20: =E19/I6 -> 198.2894737 | G20: λ for anaerobic lagoon | I20: 0.1 | J20: Ammary (2004); Low and Chase (1999) | N20: From total N2O emisson | O20: kg CO2e/day | P20: =R10*I10 -> 10152.29474
B21: At discharge point | C21: COD removed | D21: g/m3 | E21: =E19*I12/100 -> 37.675 | G21: BG CH4 | I21: 0.65 | J21: EPA | N21: Total from CO2 and CH4 total emission | O21: kg CO2e/day | P21: =P18+P19 -> 259855.98
C22: COD Effluent | D22: g/m3 | E22: =E19-E21 -> 339.075 | G22: NO2 Emission factor | H22: g N2O/g TN | I22: 0.005 | J22: Chandran 2010 and IPCC | N22: Total from CO2 CH4 and N2O total emission | O22: kg CO2e/day | P22: =P18+P19+P20 -> 270008.2747
C23: BOD5 effluent | D23: g/m3 | E23: =E22/I6 -> 178.4605263

Sheet Aerated Lagoon + AS (Baseline)
A1: Aeration lagoon/ Activated sludge
B4: Input | G4: Default Value | M4: Output
B5: Category | C5: Item | D5: Unit | E5: Value | G5: Item | H5: Unit | I5: Value | J5: Source | K5: Reference | M5: Category | N5: Item | O5: Unit | P5: Value | Q5: Unit | R5: Value
B6: Waste water treatment | C6: Temperature | D6: °C | E6: ='Aerated Lagoon + AS'!$G$6 -> 20 | G6: Oxygen Demand (OD) removal efficiency at first step | H6: % | I6: =E39/E11*100 -> 89.51896886 | J6: calculation by this model | M6: Waste water treatment | N6: COD after | O6: g/m3 | P6: =E52 -> 126.3593115 | Q6: kg/day | R6: =P6*$E$10/1000 -> 4544.512637 | S6: this calculation based on EPA equation
C7: Total hydraulic residence time in pond system (d) | D7: days | E7: ='Aerated Lagoon + AS'!$G$7 -> 20 | G7: COD/BOD | I7: 1.9 | N7: COD removed | O7: g/m3 | P7: =E60 -> 1380.640689 | Q7: kg/day | R7: =P7*$E$10/1000 -> 49654.74236
C8: Number of cells | D8: cells | E8: ='Aerated Lagoon + AS'!$G$8 -> 1 | G8: Amount gas generated/kg COD removal (anaerobic process) | H8: m3/kg COD removal | I8: 0.15 | J8: MOJ | N8: COD removal | O8: % | P8: =P7/E11*100 -> 91.61517508 | Q8: % | R8: =P7/E11*100 -> 91.61517508
C9: BOD rate constant@T/day (KT) | D9: /d | E9: =I28*(I29)^(E6-20) -> 0.23 | G9: Conversion factor | H9: kg CH4/m3 | I9: 0.714 | J9: MOJ | N9: CO2 emission (well managed system) | O9: ton/h | P9: =E45+E55 -> 0.9956810318 | Q9: kg/day | R9: =P9*1000*24 -> 23896.34476
C10: Amount of waste water | D10: m3/day | E10: ='Aerated Lagoon + AS'!$G$9 -> 35965 | G10: CH4 Global Warming Potential | H10: kg CO2 e/kg CH4 | I10: 21 | J10: IPCC | N10: CO2 emission (overloaded system) | O10: ton/h | P10: =E46+E56 -> 1.259536505 | Q10: kg/day | R10: =P10*1000*24 -> 30228.87612
C11: COD concentration of raw water | D11: mg/L | E11: ='Aerated Lagoon + AS'!$G$10 -> 1507 | G11: N2O | H11: kg CO2 e/kg N2O | I11: 298 | J11: IPCC | N11: CH4 emission (well managed system) | O11: ton/h | P11: =E47+E57 -> 0 | Q11: kg/day | R11: =P11*1000*24 -> 0
C12: Total Nitrogen (TN) | D12: mg/L | E12: ='Aerated Lagoon + AS'!$G$11 -> 120.56 | G12: COD degradation rate at up to discharge point | H12: % | I12: ='Aerated Lagoon + AS'!$G$12 -> 50 | J12: MOJ | N12: CH4 emission (overloaded system) | O12: ton/h | P12: =E48+E58 -> 0.110947315 | Q12: kg/day | R12: =P12*1000*24 -> 2662.735559
B13: COD removal from sludge | C13: Generated amount of sludge | D13: kgDS/day | E13: ='Aerated Lagoon + AS'!$G$17 -> 15294 | G13: COD degradation rate at discharge point | H13: % | I13: ='Aerated Lagoon + AS'!$G$13 -> 10 | J13: MOJ | N13: N2O emission | O13: ton/h | P13: =E49+E59 -> 0.002129256446 | Q13: kg/day | R13: =P13*1000*24 -> 51.10215471
B14: Electricity use | C14: Total Electricity consumption | D14: kWh/day | E14: ='Aerated Lagoon + AS'!$G$18 -> 155917 | G14: Maximum methane formation potential | H14: kgCH4/kgCOD | I14: ='Aerated Lagoon + AS'!$G$14 -> 0.21 | J14: MOJ | M14: At up to discharge point | N14: COD after | O14: g/m3 | P14: =E65 -> 63.17965574 | Q14: kg/day | R14: =P14*$E$10/1000 -> 2272.256319 | S14: this calculation based on IGES DATA
G15: Model correction coeficient | I15: 0.94 | J15: MOJ | N15: GHG Emission | O15: kg/day | P15: =E64*E10*I14*I15*I10/1000 -> 9419.411343 | Q15: kg/day | R15: =P15 -> 9419.411343
G16: Methane emission/kg generated sludge | H16: kgCH4/kgDS | I16: ='Aerated Lagoon + AS'!$G$15 -> 0.15 | J16: MOJ | M16: At dischagre point | N16: COD after | O16: g/m3 | P16: =E68 -> 56.86169017 | Q16: kg/day | R16: =P16*$E$10/1000 -> 2045.030687
G17: Electricity emission factor | H17: kgCO2/kWh | I17: 0.754 | J17: ADB, 2017 (also used by MOJ) | N17: GHG Emission | O17: kg/day | P17: =E67*E10/1000*I14*I15*I10 -> 941.9411343 | Q17: kg/day | R17: =P17 -> 941.9411343
G18: CF CO2 | H18: g CO2/g Oxygen demand | I18: 1.375 | J18: EPA | M18: From Sludge | N18: GHG Emission | O18: kg CO2e/day | P18: =E13*I16*I10 -> 48176.1 | Q18: kg/day | R18: =P18 -> 48176.1
G19: CF CH4 | H19: g CH4/g Oxygen demand | I19: 0.5 | J19: EPA | M19: By Electricity Used | N19: CO2 emission | O19: kg CO2e/day | P19: =E14*I17 -> 117561.418 | Q19: kg/day | R19: =P19 -> 117561.418
G20: MCF ww for aerobic lagoon well managed | I20: 0 | J20: IPCC | N20: GHG Emission | O20: kg CO2e/day | P20: =P19 -> 117561.418 | Q20: kg/day | R20: =P20 -> 117561.418
G21: MCF ww for aerobic lagoon overloaded/anoxic | I21: 0.3 | J21: EPA | M21: GHG emission | N21: From total CO2 emisson (well manage system) | O21: kg CO2e/day | P21: =R9+R19 -> 141457.7628
G22: λ for aerobic lagoon well managed | I22: 0.65 | J22: Choubert et al (2009), Muller et al (2003), Munz (2008) | N22: From total CO2 emisson (overloaded system) | O22: kg CO2e/day | P22: =R10+R19 -> 147790.2941
G23: λ for aerobic lagoon overloaded | I23: 0.45 | J23: EPA | N23: From total CH4 emisson (well managed system) | O23: kg CO2e/day | P23: =(R11*21)+R15+R17+R18 -> 58537.45248
G24: BG CH4 | I24: 0.65 | J24: EPA | N24: From total CH4 emisson (overloaded system) | O24: kg CO2e/day | P24: =(R12*21)+R15+R17+R18 -> 114454.8992
G25: NO2 Emission factor | H25: g N2O/g TKN | I25: 0.005 | J25: Chandran 2010 and IPCC | N25: From total N2O emisson | O25: kg CO2e/day | P25: =R13*I11 -> 15228.4421
G26: Oxygen Demand (OD) removal efficiency at clariffier settle | I26: 0.2 | J26: EPA | N26: well managed system from CO2 and CH4 total emission | O26: kg CO2e/day | P26: =P21+P23 -> 199995.2152
G27: k (first order reaction rate constant (assumed to be constant in all cells) | H27: day-1 at 20° C | I27: 0.276 | J27: EPA | N27: overloaded system from CO2 and CH4 total emission | O27: kg CO2e/day | P27: =P22+P24 -> 262245.1933
G28: K20 (BOD rate constant@20°C) | H28: /day | I28: 0.23 | J28: EPA | N28: well managed system from CO2 CH4 and NO2 total emission | O28: kg CO2e/day | P28: =P26+P25 -> 215223.6573
G29: θ (Temperature Coefissient ) | I29: 1.056 | J29: EPA | N29: over loaded system from CO2 CH4 and NO2 total emission | O29: kg CO2e/day | P29: =P27+P25 -> 277473.6354
G30: TN removal eff in Aeration tank | I30: ='Aerated Lagoon + AS'!$G$16/100 -> 0.5
B32: Calculation
B34: Proposed Calculation
B35: Category | C35: Item | D35: Unit | E35: Value
B36: Waste water treatment
B37: 1st step : Aerobic lagoon | C37: Waste water influent flow rate (Qww) | D37: m3/h | E37: =E10/24 -> 1498.541667
C38: BOD5 influent | D38: g/m3 | E38: =E11/I7 -> 793.1578947
C39: COD removed | D39: g/m3 | E39: =E11-E40 -> 1349.050861
C40: COD Effluent | D40: g/m3 | E40: =E41*I7 -> 157.9491393
C41: BOD5 effluent | D41: g/m3 | E41: =(E38)*(1-EXP(-E9*5))*(1/(1+(I27*E7)/E8)^E8) -> 83.13112597
C42: BOD removed | D42: g/m3 | E42: =E38-E41 -> 710.0267688
C43: COD removal efficiency | E43: =E39/E11 -> 0.8951896886
C44: TN after | D44: g/m3 | E44: =E12-(E12*I30) -> 60.28
C45: CO2 emission (if system is well managed) | D45: ton/h | E45: =(10^(-6))*E37*E11*E43*$I$18*((1-I20*$I$24)*(1-I22)) -> 0.9728992952
C46: CO2 emission (if system is overloaded) | D46: ton/h | E46: =(10^(-6))*E37*E11*E43*$I$18*((1-I21*$I$24)*(1-I23)) -> 1.230717608
C47: CH4 emission (if system is well managed) | D47: ton/h | E47: =(10^-6)*E37*E11*E43*I19*(I20*I24)*(1-I22) -> 0
C48: CH4 emission (if system is overloaded) | D48: ton/h | E48: =(10^-6)*E37*E11*E43*I19*(I21*I24)*(1-I23) -> 0.1084087786
C49: N2O emission | D49: ton/h | E49: =E37*E12*I25*44/28*10^-6 -> 0.001419504298
B50: 2nd step : Clariffier Settler | C50: Waste water influent flow rate (Qww) | D50: m3/h | E50: =E37 -> 1498.541667
C51: COD removed | D51: g/m3 | E51: =E40*I26 -> 31.58982787
C52: COD Effluent | D52: g/m3 | E52: =E40-E51 -> 126.3593115
C53: BOD5 removed | D53: g/m3 | E53: =E41*I26 -> 16.62622519
C54: BOD5 effluent | D54: g/m3 | E54: =E41-E53 -> 66.50490078
C55: CO2 emission (if system is well managed) | D55: ton/h | E55: =(10^-6)*E50*E40*I26*I18*((1-I20*I24)*(1-I22)) -> 0.02278173653
C56: CO2 emission (if system is overloaded) | D56: ton/h | E56: =(10^-6)*E50*E40*I26*I18*((1-I21*I24)*(1-I23)) -> 0.02881889671
C57: CH4 emission (if system is well managed) | D57: ton/h | E57: =(10^-6)*E50*E40*I26*I19*(I20*I24)*(1-I22) -> 0
C58: CH4 emission (if system is overloaded) | D58: ton/h | E58: =(10^-6)*E50*E40*I26*I19*(I21*I24)*(1-I23) -> 0.002538536356
C59: N2O emission | D59: ton/h | E59: =E50*E44*I25*44/28*10^-6 -> 0.0007097521488
C60: Total COD removal | D60: g/m3 | E60: =E39+E51 -> 1380.640689
C61: Total BOD removal | D61: g/m4 | E61: =E42+E53 -> 726.652994
C62: COD removal efficiency in baseline scenario | E62: =E60/E11 -> 0.9161517508
C63: BOD removal efficiency in baseline scenario | E63: =E61/E38 -> 0.9161517508
B64: At up to discharge point | C64: COD removed | D64: g/m3 | E64: =E52*(I12/100) -> 63.17965574
C65: COD Effluent | D65: g/m3 | E65: =E52-E64 -> 63.17965574
C66: BOD5 effluent | D66: g/m3 | E66: =E65/I7 -> 33.25245039
B67: At discharge point | C67: COD removed | D67: g/m3 | E67: =E65*I13/100 -> 6.317965574
C68: COD Effluent | D68: g/m3 | E68: =E65-E67 -> 56.86169017
C69: BOD5 effluent | D69: g/m3 | E69: =E68/I7 -> 29.92720535

Sheet Anaerobic
E3: Anaerobic lagoon
E5: Input | F5: Unit | G5: Value
E6: Amount of the Wastewater | F6: m3/d | G6: 35965
E7: COD Concentration in Wastewater | F7: g/m3 | G7: 1507
E8: Total Nitrogen in Wastewater | F8: g/m3 | G8: 120.56
E9: COD removal efficiency at first step | F9: % | G9: 50
E10: COD degradation rate at up to discharge point | F10: % | G10: 50
E11: COD degradation rate at discharge point | F11: % | G11: 10
E12: Maximum methane formation potential | F12: kgCH4/kgCOD | G12: 0.21
E13: Methane emission/kg generated sludge | F13: kgCH4/kg Sludge | G13: 0.15
E14: Amount of generated sludge | F14: kg/d | G14: 5306
E15: Electricity Use | F15: kWh/d | G15: 42561
E21: Output | F21: Unit | G21: Value
E22: COD Concentration at the different stages
E23: After the wastewater treatment | F23: g/m3 | G23: ='Anaerobic lagoon (BAU)'!$P$5 -> 753.5
E24: At up to discharge point | F24: g/m3 | G24: ='Anaerobic lagoon (BAU)'!$P$11 -> 376.75
E25: At discharge point | F25: g/m3 | G25: ='Anaerobic lagoon (BAU)'!$P$13 -> 339.075
E26: GHG Emissions at the different stages
E27: Wastewater treatment | F27: kg CO2e/d | G27: ='GHG emission comparison'!$F$7+('GHG emission comparison'!$F$8*21)+('GHG emission comparison'!$F$9*298) -> 159417.043
E28: At up to discharge point | F28: kg CO2e/d | G28: ='GHG emission comparison'!F10 -> 56169.39792
E29: At discharge point | F29: kg CO2e/d | G29: ='GHG emission comparison'!F11 -> 5616.939792
E30: From sludge | F30: kg CO2e/d | G30: ='GHG emission comparison'!F12 -> 16713.9
E31: From electricity used | F31: kg CO2e/d | G31: ='GHG emission comparison'!F13 -> 32090.994
E32: Total GHG emission, including N2O | F32: kg CO2e/d | G32: ='GHG emission comparison'!$F$15 -> 270008.2747

Sheet Aerated Lagoon + AS
E3: Aerated+Activated Sludge
E5: Input | F5: Unit | G5: Value
E6: Ambient Temperature | F6: C | G6: 20
E7: Total hydraulic residence time in pond system | F7: Day | G7: 20
E8: Number of cells | G8: 1
E9: Amount of the Wastewater | F9: m3/d | G9: 35965
E10: COD Concentration in Wastewater | F10: g/m3 | G10: 1507
E11: Total Nitrogen in Wastewater | F11: g/m3 | G11: 120.56
E12: COD degradation rate at up to discharge point | F12: % | G12: 50
E13: COD degradation rate at discharge point | F13: % | G13: 10
E14: Maximum methane formation potential | F14: kgCH4/kgCOD | G14: 0.21
E15: Methane emission/kg generated sludge | F15: kgCH4/kg Sludge | G15: 0.15
E16: TN removal efficiency | F16: % | G16: 50
E17: Amount of generated sludge | F17: kg/d | G17: 15294
E18: Electricity Use | F18: kWh/d | G18: 155917
E24: Output | F24: Unit | G24: Value
E25: COD Concentration at the different stages
E26: After the wastewater treatment | F26: g/m3 | G26: ='Aerated Lagoon + AS (Baseline)'!$P$6 -> 126.3593115
E27: At up to discharge point | F27: g/m3 | G27: ='Aerated Lagoon + AS (Baseline)'!$P$14 -> 63.17965574
E28: At discharge point | F28: g/m3 | G28: ='Aerated Lagoon + AS (Baseline)'!$P$16 -> 56.86169017
E29: GHG Emissions at the different stages
E30: Wastewater treatment | F30: kg CO2e/d | G30: ='GHG emission comparison'!$H$7+('GHG emission comparison'!$H$8*21)+('GHG emission comparison'!$H$9*298) -> 101374.765
E31: At up to discharge point | F31: kg CO2e/d | G31: ='GHG emission comparison'!H10 -> 9419.411343
E32: At discharge point | F32: kg CO2e/d | G32: ='GHG emission comparison'!H11 -> 941.9411343
E33: From sludge | F33: kg CO2e/d | G33: ='GHG emission comparison'!H12 -> 48176.1
E34: From electricity used | F34: kg CO2e/d | G34: ='GHG emission comparison'!H13 -> 117561.418
E35: Total GHG emission, including N2O | F35: kg CO2e/d | G35: ='GHG emission comparison'!$H$15 -> 277473.6354

Sheet Swimbed
E3: Swimbed
E5: Input | F5: Unit | G5: Value
E6: Ambient Temperature | F6: C | G6: 20
E7: Total hydraulic residence time in pond system | F7: Day | G7: 20
E8: Number of cells | G8: 2
E9: Amount of the Wastewater | F9: m3/d | G9: 35965
E10: COD Concentration in Wastewater | F10: g/m3 | G10: 1507
E11: Total Nitrogen in Wastewater | F11: g/m3 | G11: 120.56
E12: COD degradation rate at up to discharge point | F12: % | G12: 50
E13: COD degradation rate at discharge point | F13: % | G13: 10
E14: Maximum methane formation potential | F14: kgCH4/kgCOD | G14: 0.21
E15: Methane emission/kg generated sludge | F15: kgCH4/kg Sludge | G15: 0.15
E16: TN removal efficiency | F16: % | G16: 50
E17: Amount of generated sludge | F17: kg/d | G17: 5306
E18: Electricity Use | F18: kWh/d | G18: 64111
E24: Output | F24: Unit | G24: Value
E25: COD Concentration at the different stages
E26: After the wastewater treatment | F26: g/m3 | G26: ='Swimbed Scenario'!$P$6 -> 58.27458061
E27: At up to discharge point | F27: g/m3 | G27: ='Swimbed Scenario'!$P$12 -> 29.13729031
E28: At discharge point | F28: g/m3 | G28: ='Swimbed Scenario'!$P$14 -> 26.22356127
E29: GHG Emissions at the different stages
E30: Wastewater treatment | F30: kg CO2e/d | G30: ='GHG emission comparison'!$I$7+('GHG emission comparison'!$I$8*21)+('GHG emission comparison'!$I$9*298) -> 40303.20803
E31: At up to discharge point | F31: kg CO2e/d | G31: ='GHG emission comparison'!I10 -> 4344.058536
E32: At discharge point | F32: kg CO2e/d | G32: ='GHG emission comparison'!I11 -> 434.4058536
E33: From sludge | F33: kg CO2e/d | G33: ='GHG emission comparison'!I12 -> 16713.9
E34: From electricity used | F34: kg CO2e/d | G34: ='GHG emission comparison'!I13 -> 48339.694
E35: Total GHG emission, including N2O | F35: kg CO2e/d | G35: ='GHG emission comparison'!$I$15 -> 110135.2664

Sheet UASB
E3: UASB
E5: Input | F5: Unit | G5: Value
E6: Ambient Temperature | F6: C | G6: ='Aerated Lagoon + AS'!G6 -> 20
E7: Total hydraulic residence time in pond system | F7: Day | G7: ='Aerated Lagoon + AS'!G7 -> 20
E8: Number of cells | G8: ='Aerated Lagoon + AS'!G8 -> 1
E9: Amount of the Wastewater | F9: m3/d | G9: 35965
E10: COD Concentration in Wastewater | F10: g/m3 | G10: 1507
E11: Total Nitrogen in Wastewater | F11: g/m3 | G11: 120.56
E12: COD removal efficiency at first step | F12: % | G12: 80
E13: COD degradation rate at up to discharge point | F13: % | G13: 50
E14: COD degradation rate at discharge point | F14: % | G14: 10
E15: Maximum methane formation potential | F15: kgCH4/kgCOD | G15: 0.21
E16: Methane emission/kg generated sludge | F16: kgCH4/kg Sludge | G16: 0.15
E17: TN removal efficiency | F17: % | G17: 50
E18: Amount of generated sludge | F18: kg/d | G18: 4120
E19: Electricity Use | F19: kWh/d | G19: 48612
E25: Output | F25: Unit | G25: Value
E26: COD Concentration at the different stages
E27: After the wastewater treatment | F27: g/m3 | G27: ='UASB + AS'!$O$6 -> 25.2718623
E28: At up to discharge point | F28: g/m3 | G28: ='UASB + AS'!$O$14 -> 12.63593115
E29: At discharge point | F29: g/m3 | G29: ='UASB + AS'!$O$16 -> 11.37233803
E30: GHG Emissions at the different stages
E31: Wastewater treatment | F31: kg CO2e/d | G31: ='GHG emission comparison'!$K$7+('GHG emission comparison'!$K$8*21)+('GHG emission comparison'!$K$9*298) -> 58993.66193
E32: At up to discharge point | F32: kg CO2e/d | G32: ='GHG emission comparison'!K10 -> 1883.882269
E33: At discharge point | F33: kg CO2e/d | G33: ='GHG emission comparison'!K11 -> 188.3882269
E34: From sludge | F34: kg CO2e/d | G34: ='GHG emission comparison'!K12 -> 12978
E35: From electricity used | F35: kg CO2e/d | G35: ='GHG emission comparison'!K13 -> 36653.448
E36: Reduction from the biogas utilization | F36: kg CO2e/d | G36: =-'GHG emission comparison'!K16 -> -13124
E37: Total GHG emission, including N2O | F37: kg CO2e/d | G37: ='GHG emission comparison'!$K$18 -> 97573.38042

Sheet UASBSWIMBED
E3: UASB+Swimbed
E5: Input | F5: Unit | G5: Value
E6: Ambient Temperature | F6: C | G6: ='Aerated Lagoon + AS'!G6 -> 20
E7: Total hydraulic residence time in pond system | F7: Day | G7: ='Aerated Lagoon + AS'!G7 -> 20
E8: Number of cells | G8: 2
E9: Amount of the Wastewater | F9: m3/d | G9: 35965
E10: COD Concentration in Wastewater | F10: g/m3 | G10: 1507
E11: Total Nitrogen in Wastewater | F11: g/m3 | G11: 120.56
E12: COD removal efficiency at first step | F12: % | G12: 80
E13: COD degradation rate at up to discharge point | F13: % | G13: 50
E14: COD degradation rate at discharge point | F14: % | G14: 10
E15: Maximum methane formation potential | F15: kgCH4/kgCOD | G15: 0.21
E16: Methane emission/kg generated sludge | F16: kgCH4/kg Sludge | G16: 0.15
E17: TN removal efficiency | F17: % | G17: 50
E18: Amount of generated sludge | F18: kg/d | G18: 2168
E19: Electricity Use | F19: kWh/d | G19: 33651
E25: Output | F25: Unit | G25: Value
E26: COD Concentration at the different stages
E27: After the wastewater treatment | F27: g/m3 | G27: ='UASB + SWIMBED'!$O$6 -> 14.56864515
E28: At up to discharge point | F28: g/m3 | G28: ='UASB + SWIMBED'!$O$12 -> 7.284322576
E29: At discharge point | F29: g/m3 | G29: ='UASB + SWIMBED'!$O$14 -> 6.555890319
E30: GHG Emissions at the different stages
E31: Wastewater treatment | F31: kg CO2e/d | G31: ='GHG emission comparison'!$L$7+('GHG emission comparison'!$L$8*21)+('GHG emission comparison'!$L$9*298) -> 46728.91926
E32: At up to discharge point | F32: kg CO2e/d | G32: ='GHG emission comparison'!L10 -> 1086.014634
E33: At discharge point | F33: kg CO2e/d | G33: ='GHG emission comparison'!L11 -> 108.6014634
E34: From sludge | F34: kg CO2e/d | G34: ='GHG emission comparison'!L12 -> 6829.2
E35: From electricity used | F35: kg CO2e/d | G35: ='GHG emission comparison'!L13 -> 25372.854
E36: Reduction from the biogas utilization | F36: kg CO2e/d | G36: =-'GHG emission comparison'!L16 -> -13124
E37: Total GHG emission, including N2O | F37: kg CO2e/d | G37: ='GHG emission comparison'!$L$18 -> 67001.58936

Sheet Comparsion
E5: Interventions | F5: Anaerobic | G5: Aerated Lagoon + AS | H5: Swimbed | I5: UASB | J5: UASB+Swimbed
E6: COD Concentration at the different stages
E7: After the wastewater treatment (g/m3) | F7: =Anaerobic!G23 -> 753.5 | G7: ='Aerated Lagoon + AS'!G26 -> 126.3593115 | H7: =Swimbed!G26 -> 58.27458061 | I7: =UASB!G27 -> 25.2718623 | J7: =UASBSWIMBED!G27 -> 14.56864515
E8: At up to discharge point (g/m3) | F8: =Anaerobic!G24 -> 376.75 | G8: ='Aerated Lagoon + AS'!G27 -> 63.17965574 | H8: =Swimbed!G27 -> 29.13729031 | I8: =UASB!G28 -> 12.63593115 | J8: =UASBSWIMBED!G28 -> 7.284322576
E9: At discharge point (g/m3) | F9: =Anaerobic!G25 -> 339.075 | G9: ='Aerated Lagoon + AS'!G28 -> 56.86169017 | H9: =Swimbed!G28 -> 26.22356127 | I9: =UASB!G29 -> 11.37233803 | J9: =UASBSWIMBED!G29 -> 6.555890319
E10: COD removed for the System (g/m3) | F10: =(Anaerobic!$G$7-F9) -> 1167.925 | G10: ='Aerated Lagoon + AS'!$G$10-G9 -> 1450.13831 | H10: =Swimbed!$G$10-H9 -> 1480.776439 | I10: =UASB!$G$10-I9 -> 1495.627662 | J10: =UASBSWIMBED!$G$10-J9 -> 1500.44411
E11: GHG Emissions at the different stages
E12: Wastewater treatment (kg CO2 e/day) | F12: ='GHG emission comparison'!$F$7+('GHG emission comparison'!$F$8*21)+('GHG emission comparison'!$F$9*298) -> 159417.043 | G12: ='GHG emission comparison'!$H$7+('GHG emission comparison'!$H$8*21)+('GHG emission comparison'!$H$9*298) -> 101374.765 | H12: ='GHG emission comparison'!$I$7+('GHG emission comparison'!$I$8*21)+('GHG emission comparison'!$I$9*298) -> 40303.20803 | I12: ='GHG emission comparison'!$K$7+('GHG emission comparison'!$K$8*21)+('GHG emission comparison'!$K$9*298) -> 58993.66193 | J12: ='GHG emission comparison'!$L$7+('GHG emission comparison'!$L$8*21)+('GHG emission comparison'!$L$9*298) -> 46728.91926
E13: At up to discharge point (kg CO2 e/day) | F13: ='GHG emission comparison'!F10 -> 56169.39792 | G13: ='GHG emission comparison'!H10 -> 9419.411343 | H13: ='GHG emission comparison'!I10 -> 4344.058536 | I13: ='GHG emission comparison'!K10 -> 1883.882269 | J13: ='GHG emission comparison'!L10 -> 1086.014634
E14: At discharge point (kg CO2 e/day) | F14: ='GHG emission comparison'!F11 -> 5616.939792 | G14: ='GHG emission comparison'!H11 -> 941.9411343 | H14: ='GHG emission comparison'!I11 -> 434.4058536 | I14: ='GHG emission comparison'!K11 -> 188.3882269 | J14: ='GHG emission comparison'!L11 -> 108.6014634
E15: From sludge (kg CO2 e/day) | F15: ='GHG emission comparison'!F12 -> 16713.9 | G15: ='GHG emission comparison'!H12 -> 48176.1 | H15: ='GHG emission comparison'!I12 -> 16713.9 | I15: ='GHG emission comparison'!K12 -> 12978 | J15: ='GHG emission comparison'!L12 -> 6829.2
E16: From electricity used (kg CO2 e/day) | F16: ='GHG emission comparison'!F13 -> 32090.994 | G16: ='GHG emission comparison'!H13 -> 117561.418 | H16: ='GHG emission comparison'!I13 -> 48339.694 | I16: ='GHG emission comparison'!K13 -> 36653.448 | J16: ='GHG emission comparison'!L13 -> 25372.854
E17: Reduction from the biogas utilization (kg CO2 e/day) | F17: ='GHG emission comparison'!$F$16 -> 0 | G17: ='GHG emission comparison'!$H$16 -> 0 | H17: ='GHG emission comparison'!$H$16 -> 0 | I17: ='GHG emission comparison'!$K$16 -> 13124 | J17: ='GHG emission comparison'!$K$16 -> 13124
E18: Total GHG emission, excluding N2O (kg CO2 e/day) | F18: ='GHG emission comparison'!F17 -> 259855.98 | G18: ='GHG emission comparison'!H17 -> 262245.1933 | H18: ='GHG emission comparison'!I17 -> 94906.82431 | I18: ='GHG emission comparison'!K17 -> 82344.93832 | J18: ='GHG emission comparison'!L17 -> 51773.14725
E19: Total GHG emission, including N2O (kg CO2 e/day) | F19: ='GHG emission comparison'!F18 -> 270008.2747 | G19: ='GHG emission comparison'!H18 -> 277473.6354 | H19: ='GHG emission comparison'!I18 -> 110135.2664 | I19: ='GHG emission comparison'!K18 -> 97573.38042 | J19: ='GHG emission comparison'!L18 -> 67001.58936

Sheet Co-benefits
F3: GHG emissions reduction and Co-benefits
F5: Baseline | G5: Swimbed | H5: UASB | I5: UASB + Swimed
E6: GHG Emissions Reduction (%)* | F6: ='GHG emission comparison'!$H$20 -> -2.764863684 | G6: 59.2 | H6: 63.9 | I6: 75.2 | U6: =SUM(P6:T6) -> 0
E7: COD Removal (%) | F7: ='COD comparison (using MOE formt'!F13*100 -> 83.23035017 | G7: ='COD comparison (using MOE formt'!G13*100 -> 92.26614723 | H7: ='COD comparison (using MOE formt'!H13*100 -> 96.64607003 | I7: ='COD comparison (using MOE formt'!I13*100 -> 98.06653681 | U7: =SUM(P7:T7) -> 0
E8: GHG Emissions Reduction (kt/y)* | F8: =-'GHG emission comparison'!M29 -> -2724.856667 | G8: =-'GHG emission comparison'!N29 -> 58353.64803 | H8: =-'GHG emission comparison'!O29 -> 62938.73642 | I8: =-'GHG emission comparison'!P29 -> 74097.44016 | U8: 0
E9: COD Removal (t/y) | F9: =-'COD comparison (using MOE formt'!F12 -> 3704.677616 | G9: =-'COD comparison (using MOE formt'!G12 -> 4106.871228 | H9: =-'COD comparison (using MOE formt'!H12 -> 4301.826577 | I9: =-'COD comparison (using MOE formt'!I12 -> 4365.05317 | U9: 0
E10: * Including N2O | U10: =SUM(P10:T10) -> 0

Sheet COD comparison (using MOE formt
A1: Sources | B1: BAU | F1: Baseline | G1: Co-benefits
B2: Item | C2: Unit | D2: Without any treatment | E2: Anaerobic | F2: Aerated + Activated Sludge | G2: Swimbed | H2: UASB + AS | I2: UASB+Swimbed
D3: Value | E3: Value | F3: Value | G3: Value | H3: Value | I3: Value
A4: Wastewater treatment | B4: COD after | C4: (mg/l) | D4: =Anaerobic!$G$7 -> 1507 | E4: =Comparsion!F9 -> 339.075 | F4: =Comparsion!G9 -> 56.86169017 | G4: =Comparsion!H9 -> 26.22356127 | H4: =Comparsion!I9 -> 11.37233803 | I4: =Comparsion!J9 -> 6.555890319
C7: m3/d | D7: =Anaerobic!$G$6 -> 35965 | E7: =Anaerobic!$G$6 -> 35965 | F7: ='Aerated Lagoon + AS'!$G$9 -> 35965 | G7: =Swimbed!$G$9 -> 35965 | H7: =UASB!$G$9 -> 35965 | I7: =UASBSWIMBED!$G$9 -> 35965
C9: t/d | D9: =D4*D7/1000000 -> 54.199255 | E9: =E4*E7/1000000 -> 12.19483238 | F9: 2.045030687 | G9: 0.9431303812 | H9: 0.4090061374 | I9: 0.2357825953
C10: t/y | D10: =D9*365 -> 19782.72807 | E10: =E9*365 -> 4451.113817 | F10: 746.4362007 | G10: 344.2425892 | H10: 149.2872401 | I10: 86.06064729
F12: =F10-E10 -> -3704.677616 | G12: =G10-E10 -> -4106.871228 | H12: =H10-E10 -> -4301.826577 | I12: =I10-E10 -> -4365.05317
F13: =(E10-F10)/E10 -> 0.8323035017 | G13: =(E10-G10)/E10 -> 0.9226614723 | H13: =(E10-H10)/E10 -> 0.9664607003 | I13: =(E10-I10)/E10 -> 0.9806653681
E16: =D4-E4 -> 1167.925 | F16: =D4-F4 -> 1450.13831 | G16: =D4-G4 -> 1480.776439 | H16: =D4-H4 -> 1495.627662 | I16: =D4-I4 -> 1500.44411

Sheet GHG emission comparison
C1: Reduction in GHG from 5 Scenario
C3: Scenarios / Steps | D3: BAU | G3: Baseline | I3: Co-benefits
D4: Item | E4: Unit | F4: Anaerobic | G4: Aerated + Activated Sludge | I4: Swimbed | J4: UASB + AS | L4: UASB+Swimbed
G5: Well managed system | H5: Anoxic system | J5: Well managed system | K5: Anoxic system
F6: Value | G6: Value | H6: Value | I6: Value | J6: Value | K6: Value | L6: Value
C7: Waste water treatment | D7: CO2 | E7: kg/day | F7: ='Anaerobic lagoon (BAU)'!R8 -> 16097.17873 | G7: ='Aerated Lagoon + AS (Baseline)'!R9 -> 23896.34476 | H7: ='Aerated Lagoon + AS (Baseline)'!R10 -> 30228.87612 | I7: ='Swimbed Scenario'!R9 -> 25074.76592 | J7: ='UASB + AS'!Q9 -> 7640.989616 | K7: ='UASB + AS'!Q10 -> 8907.495889 | L7: ='UASB + SWIMBED'!Q9 -> 7826.242571
D8: CH4 | E8: kg/day | F8: ='Anaerobic lagoon (BAU)'!R9 -> 6341.312835 | G8: ='Aerated Lagoon + AS (Baseline)'!R11 -> 0 | H8: ='Aerated Lagoon + AS (Baseline)'!R12 -> 2662.735559 | I8: ='Swimbed Scenario'!R10 -> 0 | J8: ='UASB + AS'!Q11 -> 1127.344504 | K8: ='UASB + AS'!Q12 -> 1659.891616 | L8: ='UASB + SWIMBED'!Q10 -> 1127.344504
D9: NO2 | E9: kg/day | F9: ='Anaerobic lagoon (BAU)'!R10 -> 34.06810314 | G9: ='Aerated Lagoon + AS (Baseline)'!R13 -> 51.10215471 | H9: ='Aerated Lagoon + AS (Baseline)'!R13 -> 51.10215471 | I9: ='Swimbed Scenario'!R11 -> 51.10215471 | J9: ='UASB + AS'!Q13 -> 51.10215471 | K9: ='UASB + AS'!Q13 -> 51.10215471 | L9: ='UASB + SWIMBED'!Q11 -> 51.10215471
C10: At up to disharge point | D10: GHG emission | E10: kg CO2 e/day | F10: ='Anaerobic lagoon (BAU)'!R12 -> 56169.39792 | G10: ='Aerated Lagoon + AS (Baseline)'!R15 -> 9419.411343 | H10: ='Aerated Lagoon + AS (Baseline)'!R15 -> 9419.411343 | I10: ='Swimbed Scenario'!R13 -> 4344.058536 | J10: ='UASB + AS'!Q15 -> 1883.882269 | K10: ='UASB + AS'!Q15 -> 1883.882269 | L10: ='UASB + SWIMBED'!Q13 -> 1086.014634
C11: At discharge point | D11: GHG emission | E11: kg CO2 e/day | F11: ='Anaerobic lagoon (BAU)'!R14 -> 5616.939792 | G11: ='Aerated Lagoon + AS (Baseline)'!R17 -> 941.9411343 | H11: ='Aerated Lagoon + AS (Baseline)'!R17 -> 941.9411343 | I11: ='Swimbed Scenario'!R15 -> 434.4058536 | J11: ='UASB + AS'!Q17 -> 188.3882269 | K11: ='UASB + AS'!Q17 -> 188.3882269 | L11: ='UASB + SWIMBED'!Q15 -> 108.6014634
C12: From sludge | D12: GHG emission | E12: kg CO2 e/day | F12: ='Anaerobic lagoon (BAU)'!R15 -> 16713.9 | G12: ='Aerated Lagoon + AS (Baseline)'!R18 -> 48176.1 | H12: ='Aerated Lagoon + AS (Baseline)'!R18 -> 48176.1 | I12: ='Swimbed Scenario'!R16 -> 16713.9 | J12: ='UASB + AS'!Q18 -> 12978 | K12: ='UASB + AS'!Q18 -> 12978 | L12: ='UASB + SWIMBED'!Q16 -> 6829.2
C13: From electricity used | D13: GHG emission | E13: kg CO2 e/day | F13: ='Anaerobic lagoon (BAU)'!R17 -> 32090.994 | G13: ='Aerated Lagoon + AS (Baseline)'!R20 -> 117561.418 | H13: ='Aerated Lagoon + AS (Baseline)'!R20 -> 117561.418 | I13: ='Swimbed Scenario'!R18 -> 48339.694 | J13: ='UASB + AS'!Q20 -> 36653.448 | K13: ='UASB + AS'!Q20 -> 36653.448 | L13: ='UASB + SWIMBED'!Q18 -> 25372.854
C14: Total GHG (CO2 and CH4) | E14: kg CO2 e/day | F14: =F7+(F8*21)+F10+F11+F12+F13 -> 259855.98 | G14: =G7+(G8*21)+G10+G11+G12+G13 -> 199995.2152 | H14: 262245.1933 | I14: 94906.82431 | J14: =J7+(J8*21)+J10+J11+J12+J13 -> 83018.9427 | K14: =K7+(K8*21)+K10+K11+K12+K13 -> 95468.93832 | L14: =L7+(L8*21)+L10+L11+L12+L13 -> 64897.14725
C15: Total GHG (CO2 , CH4 and NO2) | E15: kg CO2 e/day | F15: =F7+(F8*21)+(F9*298)+F10+F11+F12+F13 -> 270008.2747 | G15: =G7+(G8*21)+(G9*298)+G10+G11+G12+G13 -> 215223.6573 | H15: 277473.6354 | I15: =I7+(I8*21)+(I9*298)+I10+I11+I12+I13 -> 110135.2664 | J15: 98247.3848 | K15: 110697.3804 | L15: =L7+(L8*21)+(L9*298)+L10+L11+L12+L13 -> 80125.58936
C16: Methane reduction from biogas utilization | E16: kg CO2 e/day | F16: 0 | G16: 0 | H16: 0 | I16: 0 | J16: 13124 | K16: 13124 | L16: 13124
C17: Total GHG emission after methane reduction (CO2 and CH4) | E17: kg CO2 e/day | F17: =F14-F16 -> 259855.98 | G17: =G14-G16 -> 199995.2152 | H17: 262245.1933 | I17: 94906.82431 | J17: 69894.9427 | K17: 82344.93832 | L17: 51773.14725
C18: Total GHG emission after methane reduction (CO2 , CH4 and NO2) | E18: kg CO2 e/day | F18: =F15-F16 -> 270008.2747 | G18: =G15-G16 -> 215223.6573 | H18: 277473.6354 | I18: 110135.2664 | J18: 85123.3848 | K18: 97573.38042 | L18: 67001.58936
C19: Percentage reduction of GHG | D19: CO2 and CH4 | E19: % | F19: 0 | G19: =($F$17-G17)/$F$17*100 -> 23.0361313 | H19: =($F$17-H17)/$F$17*100 -> -0.9194375145 | I19: 63.47714441 | J19: 73.10243055 | K19: 68.31131678 | L19: 80.07621481
D20: CO2 , CH4 and NO2 | E20: % | F20: 0 | G20: =($F$18-G18)/$F$18*100 -> 20.2899772 | H20: =($F$18-H18)/$F$18*100 -> -2.764863684 | I20: 59.21041067 | J20: 68.47378663 | K20: 63.86281845 | L20: 75.18535703
L25: =$F$18 -> 270008.2747 | M25: =$H$18 -> 277473.6354 | N25: =$I$18 -> 110135.2664 | O25: =$K$18 -> 97573.38042 | P25: =$L$18 -> 67001.58936
H26: Scenario | I26: Percentage reduction of GHG | L26: =L25*365/1000000 -> 98.55302027 | M26: =M25*365/1000000 -> 101.2778769 | N26: 40.19937224 | O26: 35.61428385 | P26: 24.45558012
I27: CO2 and CH4 | J27: CO2 , CH4 and NO2
H28: BAU | I28: 0 | J28: 0 | M28: =M26-L26 -> 2.724856667 | N28: =N26-L26 -> -58.35364803 | O28: =O26-L26 -> -62.93873642 | P28: =P26-L26 -> -74.09744016
H29: Baseline (well treated) | I29: =G19 -> 23.0361313 | J29: =G20 -> 20.2899772 | M29: =M28*1000 -> 2724.856667 | N29: =N28*1000 -> -58353.64803 | O29: -62938.73642 | P29: -74097.44016
H30: Baseline (Overloaded) | I30: =H19 -> -0.9194375145 | J30: =H20 -> -2.764863684
H31: Cobenefit 1 | I31: =I19 -> 63.47714441 | J31: =I20 -> 59.21041067
H32: Cobenefit 2 (well managed) | I32: =J19 -> 73.10243055 | J32: =J20 -> 68.47378663
H33: Cobenefit 2 (overloaded) | I33: =K19 -> 68.31131678 | J33: =K20 -> 63.86281845
H34: Cobenefit 3 | I34: =L19 -> 80.07621481 | J34: =L20 -> 75.18535703

Sheet Swimbed Scenario
B1: Swim-Bed
B4: Input | G4: Default Value | M4: Output
B5: Category | C5: Item | D5: Unit | E5: Value | G5: Item | H5: Unit | I5: Value | J5: Source | K5: Reference | M5: Category | N5: Item | O5: Unit | P5: Value | Q5: Unit | R5: Value
B6: Waste water treatment | C6: Amount of waste water | D6: (m3/day) | E6: =Swimbed!$G$9 -> 35965 | G6: Oxygen Demand (OD) removal efficiency at first step | H6: % | I6: =E41*100 -> 95.16634202 | J6: calculation by this model | M6: Waste water treatment | N6: COD after | O6: g/m3 | P6: =E48 -> 58.27458061 | Q6: kg/day | R6: =P6*$E$6/1000 -> 2095.845292 | S6: this calculation based on EPA equation
C7: COD concentration of raw water | D7: g/m3 | E7: =Swimbed!$G$10 -> 1507 | G7: COD/BOD | I7: 1.9 | N7: COD removed | O7: g/m3 | P7: =E54 -> 1448.725419 | Q7: kg/day | R7: =P7*$E$6/1000 -> 52103.40971
C8: Total Nitrogen (TN) | D8: mg/L or g/m3 | E8: =Swimbed!$G$11 -> 120.56 | G8: Amount gas generated/kg COD removal (anaerobic process) | H8: m3/kg COD removal | I8: 0.15 | J8: MOJ | N8: COD removal | O8: % | P8: =P7/E7*100 -> 96.13307362 | Q8: % | R8: =P7/E7*100 -> 96.13307362
C9: Temperature | D9: °C | E9: =Swimbed!$G$6 -> 20 | G9: Conversion factor | H9: kg CH4/m3 | I9: 0.714 | J9: MOJ | N9: CO2 emission | O9: ton/h | P9: =E43+E51 -> 1.044781913 | Q9: kg/day | R9: =P9*1000*24 -> 25074.76592
C10: Total hydraulic residence time in pond system (d) | D10: days | E10: =Swimbed!$G$7 -> 20 | G10: CH4 Global Warming Potential | H10: kg CO2 e/kg CH4 | I10: 21 | J10: IPCC | N10: CH4 emission | O10: ton/h | P10: =E44+E52 -> 0 | Q10: kg/day | R10: =P10*1000*24 -> 0
C11: Number of cells | D11: cells | E11: =Swimbed!$G$8 -> 2 | G11: N2O | H11: kg CO2 e/kg N2O | I11: 298 | J11: IPCC | N11: N2O emission | O11: ton/h | P11: =E45+E53 -> 0.002129256446 | Q11: kg/day | R11: =P11*1000*24 -> 51.10215471
C12: BOD rate constant@T/day (KT) | D12: /d | E12: =I28*(I29)^(E9-20) -> 0.23 | G12: COD degradation rate at up to discharge point | H12: % | I12: =Swimbed!$G$12 -> 50 | J12: MOJ | M12: At up to discharge point | N12: COD after | O12: g/m3 | P12: =E59 -> 29.13729031 | Q12: kg/day | R12: =P12*$E$6/1000 -> 1047.922646 | S12: this calculation based on IGES DATA
B13: COD removal from sludge | C13: Generated amount of sludge | D13: kgDS/day | E13: =Swimbed!$G$17 -> 5306 | G13: COD degradation rate at discharge point | H13: % | I13: =Swimbed!$G$13 -> 10 | J13: MOJ | N13: GHG Emission | O13: kg/day | P13: =E58*E6/1000*I14*I15*I10 -> 4344.058536 | Q13: kg/day | R13: =P13 -> 4344.058536
B14: Electricity use | C14: Total Electricity consumption | D14: kWh/day | E14: =Swimbed!$G$18 -> 64111 | G14: Maximum methane formation potential | H14: kgCH4/kgCOD | I14: =Swimbed!$G$14 -> 0.21 | J14: MOJ | M14: At dischagre point | N14: COD after | O14: g/m3 | P14: =E62 -> 26.22356127 | Q14: kg/day | R14: =P14*$E$6/1000 -> 943.1303812
G15: Model correction coeficient | I15: 0.94 | J15: MOJ | N15: GHG Emission | O15: kg/day | P15: =E61*E6/1000*I14*I15*I10 -> 434.4058536 | Q15: kg/day | R15: =P15 -> 434.4058536
G16: Methane emission/kg generated sludge | H16: kgCH4/kgDS | I16: =Swimbed!$G$15 -> 0.15 | J16: MOJ | M16: From Sludge | N16: GHG Emission | O16: kg CO2e/day | P16: =E13*I16*I10 -> 16713.9 | Q16: kg/day | R16: =P16 -> 16713.9
G17: Electricity emission factor | H17: kgCO2/kWh | I17: 0.754 | J17: ADB, 2017 (also used by MOJ) | M17: By Electricity Used | N17: CO2 emission | O17: kg CO2e/day | P17: =E14*I17 -> 48339.694 | Q17: kg/day | R17: =P17 -> 48339.694
G18: CF CO2 | H18: g CO2/g Oxygen demand | I18: 1.375 | J18: EPA | N18: GHG Emission | O18: kg CO2e/day | P18: =P17 -> 48339.694 | Q18: kg/day | R18: =P18 -> 48339.694
G19: CF CH4 | H19: g CH4/g Oxygen demand | I19: 0.5 | J19: EPA | M19: GHG emission | N19: From total CO2 emisson | O19: kg CO2e/day | P19: =R9+R17 -> 73414.45992
G20: MCF ww for aerobic lagoon well managed | I20: 0 | J20: IPCC | N20: From total CH4 emisson | O20: kg CO2e/day | P20: =(R10*21)+R13+R15+R16 -> 21492.36439
G21: MCF ww for aerobic lagoon overloaded/anoxic | I21: 0.3 | J21: IPCC | N21: From total N2O emisson | O21: kg CO2e/day | P21: =R11*I11 -> 15228.4421
G22: λ for aerobic lagoon well managed | I22: 0.65 | J22: Choubert et al (2009), Muller et al (2003), Munz (2008) | N22: from CO2 and CH4 total emission | O22: kg CO2e/day | P22: =P19+P20 -> 94906.82431
G23: λ for aerobic lagoon overloaded | I23: 0.45 | J23: Choubert et al (2009), Muller et al (2003), Munz (2008), Ammary (2004) | N23: from CO2 CH4 and NO2 total emission | O23: kg CO2e/day | P23: =P19+P20+P21 -> 110135.2664
G24: BG CH4 | I24: 0.65 | J24: EPA
G25: NO2 Emission factor | H25: g N2O/g TKN | I25: 0.005 | J25: Chandran 2010 and IPCC
G26: Oxygen Demand (OD) removal efficiency at clariffier settle | I26: 0.2
G27: k (first order reaction rate constant (assumed to be constant in all cells) | H27: day-1 at 20° C | I27: 0.276 | J27: EPA
G28: K20 (BOD rate constant@20°C) | H28: /day | I28: 0.23 | J28: EPA
G29: θ (Temperature Coefissient ) | I29: 1.056 | J29: EPA
B30: Calculation | G30: TN removal eff in Aeration tank | I30: =Swimbed!$G$16/100 -> 0.5
B32: Proposed Calculation
B33: Category | C33: Item | D33: Unit | E33: Value
B34: Waste water treatment
B35: 1st step : Swimbed Reactor | C35: Waste water influent flow rate (Qww) | D35: m3/h | E35: =E6/24 -> 1498.541667
C36: BOD5 influent | D36: g/m3 | E36: =E7/I7 -> 793.1578947
C37: COD removed | D37: g/m3 | E37: =E7-E38 -> 1434.156774
C38: COD Effluent | D38: g/m3 | E38: =E39*I7 -> 72.84322576
C39: BOD5 effluent | D39: g/m3 | E39: =(E36)*(1-EXP(-E12*5))*(1/(1+(I27*E10)/E11)^E11) -> 38.33853988
C40: BOD removed | D40: g/m3 | E40: =E36-E39 -> 754.8193549
C41: COD removal efficiency | E41: =E37/E7 -> 0.9516634202
C42: TN after | D42: g/m3 | E42: =E8-(E8*I30) -> 60.28
C43: CO2 emission | D43: ton/h | E43: =(10^(-6))*E35*E7*E41*$I$18*((1-I20*$I$24)*(1-I22)) -> 1.034275397
C44: CH4 emission | D44: ton/h | E44: =(10^-6)*E35*E7*E41*I19*(I20*I24)*(1-I22) -> 0
C45: N2O emission | D45: ton/h | E45: =E35*E8*I25*44/28*10^-6 -> 0.001419504298
B46: 2nd step : Clariffier Settler | C46: Waste water influent flow rate (Qww) | D46: m3/h | E46: =E35 -> 1498.541667
C47: COD removed | D47: g/m3 | E47: =E38*I26 -> 14.56864515
C48: COD Effluent | D48: g/m3 | E48: =E38-E47 -> 58.27458061
C49: BOD5 removed | D49: g/m3 | E49: =E39*I26 -> 7.667707975
C50: BOD5 effluent | D50: g/m3 | E50: =E39-E49 -> 30.6708319
C51: CO2 emission | D51: ton/h | E51: =(10^-6)*E46*E38*I26*I18*((1-I20*I24)*(1-I22)) -> 0.01050651611
C52: CH4 emission | D52: ton/h | E52: =(10^-6)*E46*E38*I26*I19*(I20*I24)*(1-I22) -> 0
C53: N2O emission | D53: ton/h | E53: =E46*E42*I25*44/28*10^-6 -> 0.0007097521488
C54: Total COD removal | D54: g/m3 | E54: =E37+E47 -> 1448.725419
C55: Total BOD removal | D55: g/m4 | E55: =E40+E49 -> 762.4870628
C56: COD removal efficiency in baseline scenario | E56: =E54/E7 -> 0.9613307362
C57: BOD removal efficiency in baseline scenario | E57: =E55/E36 -> 0.9613307362
B58: At up to discharge point | C58: COD removed | D58: g/m3 | E58: =E48*(I12/100) -> 29.13729031
C59: COD Effluent | D59: g/m3 | E59: =E48-E58 -> 29.13729031
C60: BOD5 effluent | D60: g/m3 | E60: =E59/I7 -> 15.33541595
B61: At discharge point | C61: COD removed | D61: g/m3 | E61: =E59*I13/100 -> 2.913729031
C62: COD Effluent | D62: g/m3 | E62: =E59-E61 -> 26.22356127
C63: BOD5 effluent | D63: g/m3 | E63: =E62/I7 -> 13.80187436

Sheet UASB + AS
B1: Upflow Anaerobic Sludge Blanket (UASB) + Activated Sludge (AS)
B4: Input | G4: Default Value | L4: Output
B5: Category | C5: Item | D5: Unit | E5: Value | G5: Item | H5: Unit | I5: Value | J5: Source | L5: Category | M5: Item | N5: Unit | O5: Value | P5: Unit | Q5: Value
B6: Waste water treatment | C6: Amount of waste water | D6: (m3/day) | E6: =UASB!$G$9 -> 35965 | G6: Oxygen Demand (OD) removal efficiency at first step (UASB) | H6: % | I6: =UASB!$G$12 -> 80 | J6: MOJ | L6: Waste water treatment | M6: COD after | N6: g/m3 | O6: =E48 -> 25.2718623 | P6: kg/day | Q6: =O6*E6/1000 -> 908.9025275 | R6: this calculation based on EPA equation
C7: COD concentration of raw water | D7: g/m3 | E7: =UASB!$G$10 -> 1507 | G7: Oxygen Demand (OD) removal efficiency at second step (AS) | H7: % | I7: ='Aerated Lagoon + AS (Baseline)'!E62*100 -> 91.61517508 | J7: MOJ | M7: COD removed | N7: g/m3 | O7: =E56 -> 1481.728138 | P7: kg/day | Q7: =O7*E6/1000 -> 53290.35247
C8: Total Nitrogen (TN) | D8: mg/L or g/m3 | E8: =UASB!$G$11 -> 120.56 | G8: COD/BOD | I8: 1.9 | J8: (calcualtion on supporting detail) | M8: COD removal | N8: % | O8: =O7/E7*100 -> 98.32303502 | P8: % | Q8: =O7/E7*100 -> 98.32303502
C9: Temperature (for Activated Sludge) | D9: °C | E9: 20 | G9: Amount gas generated/kg COD removal (anaerobic process) | H9: m3/kg COD removal | I9: 0.15 | J9: MOJ | M9: CO2 emission (well managed system) | N9: ton/h | O9: =E43+E51 -> 0.3183745674 | P9: kg/day | Q9: =O9*24*1000 -> 7640.989616
C10: Total hydraulic residence time in pond system (d) (for Activated Sludge) | D10: days | E10: 20 | G10: Conversion factor | H10: kg CH4/m3 | I10: 0.714 | J10: MOJ | M10: CO2 emission (overloaded system) | N10: ton/h | O10: =E43+E52 -> 0.371145662 | P10: kg/day | Q10: =O10*1000*24 -> 8907.495889 | U10: Methane gas from water treatment will be reused for energy
C11: Number of cells (for Activated Sludge) | D11: cells | E11: 1 | G11: CH4 Global Warming Potential | H11: kg CO2 e/kg CH4 | I11: 21 | J11: IPCC | M11: CH4 emission (well managed system) | N11: ton/h | O11: =E44+E53 -> 0.04697268767 | P11: kg/day | Q11: =O11*1000*24 -> 1127.344504
C12: BOD rate constant@T/day (KT) | D12: /d | E12: =I30*(I31^(E9-20)) -> 0.23 | G12: N2O | H12: kg CO2 e/kg N2O | I12: 298 | J12: IPCC | M12: CH4 emission (overloaded system) | N12: ton/h | O12: =E44+E54 -> 0.06916215066 | P12: kg/day | Q12: =O12*1000*24 -> 1659.891616
B13: COD removal from sludge | C13: Generated amount of sludge | D13: kgDS/day | E13: =UASB!$G$18 -> 4120 | G13: COD degradation rate at up to discharge point | H13: % | I13: =UASB!$G$13 -> 50 | J13: MOJ | M13: N2O emission | N13: ton/h | O13: =E45+E55 -> 0.002129256446 | P13: kg/day | Q13: =O13*1000*24 -> 51.10215471
B14: Electricity use | C14: Total Electricity consumption | D14: kWh/day | E14: =UASB!$G$19 -> 48612 | G14: COD degradation rate at discharge point | H14: % | I14: =UASB!$G$14 -> 10 | J14: MOJ | L14: At up to discharge point | M14: COD after | N14: g/m3 | O14: =E61 -> 12.63593115 | P14: kg/day | Q14: =O14*E6/1000 -> 454.4512637 | R14: this calculation based on IGES DATA
G15: Maximum methane formation potential | H15: kgCH4/kgCOD | I15: =UASB!$G$15 -> 0.21 | J15: MOJ | M15: GHG Emission | N15: kg/day | O15: =E60*E6/1000*I15*I16*I11 -> 1883.882269 | P15: kg/day | Q15: =O15 -> 1883.882269
G16: Model correction coeficient | I16: 0.94 | J16: MOJ | L16: At dischagre point | M16: COD after | N16: g/m3 | O16: =E64 -> 11.37233803 | P16: kg/day | Q16: =O16*E6/1000 -> 409.0061374
G17: Methane emission/kg generated sludge | H17: kgCH4/kgDS | I17: =UASB!$G$16 -> 0.15 | J17: MOJ | M17: GHG Emission | N17: kg/day | O17: =E63*E6/1000*I15*I16*I11 -> 188.3882269 | P17: kg/day | Q17: =O17 -> 188.3882269
G18: Electricity emission factor | H18: kgCO2/kWh | I18: 0.754 | J18: ADB, 2017 (also used by MOJ) | L18: From Sludge | M18: GHG Emission | N18: kg CO2e/day | O18: =E13*I17*I11 -> 12978 | P18: kg/day | Q18: =O18 -> 12978
G19: CF CO2 | H19: g CO2/g Oxygen demand | I19: 1.375 | J19: EPA | L19: By Electricity Used | M19: CO2 emission | N19: kg CO2e/day | O19: =E14*I18 -> 36653.448 | P19: kg/day | Q19: =O19 -> 36653.448
G20: CF CH4 | H20: g CH4/g Oxygen demand | I20: 0.5 | J20: EPA | M20: GHG Emission | N20: kg CO2e/day | O20: =O19 -> 36653.448 | P20: kg/day | Q20: =O20 -> 36653.448
G21: MCF ww for aerobic lagoon well managed | I21: 0 | J21: IPCC | L21: GHG emission | M21: From total CO2 emisson (well manage system) | N21: kg CO2e/day | O21: =Q9+Q19 -> 44294.43762
G22: MCF ww for aerobic lagoon overloaded/anoxic | I22: 0.3 | J22: IPCC | M22: From total CO2 emisson (overloaded system) | N22: kg CO2e/day | O22: =Q10+Q19 -> 45560.94389
G23: MCF ww for anaerobic sludge digester | I23: 0.8 | J23: IPCC | M23: From total CH4 emisson (well managed system) | N23: kg CO2e/day | O23: =(Q11*21)+Q15+Q17+Q18 -> 38724.50508
G24: λ for aerobic lagoon well managed | I24: 0.65 | J24: Choubert et al (2009), Muller et al (2003), Munz (2008) | M24: From total CH4 emisson (overloaded system) | N24: kg CO2e/day | O24: =(Q12*21)+Q15+Q17+Q18 -> 49907.99443
G25: λ for aerobic lagoon overloaded | I25: 0.45 | J25: Choubert et al (2009), Muller et al (2003), Munz (2008), Ammary (2004) | M25: From total N2O emisson | N25: kg CO2e/day | O25: =Q13*I12 -> 15228.4421
G26: λ for anaerobic process | I26: 0.1 | J26: Ammary (2004); Low and Chase (1999) | M26: well managed system from CO2 and CH4 total emission | N26: kg CO2e/day | O26: =O21+O23 -> 83018.9427
G27: BG CH4 | I27: 0.65 | J27: EPA | M27: overloaded system from CO2 and CH4 total emission | N27: kg CO2e/day | O27: =O22+O24 -> 95468.93832
G28: NO2 Emission factor | H28: g N2O/g TKN | I28: 0.005 | J28: Chandran 2010 and IPCC | M28: well managed system from CO2 CH4 and NO2 total emission | N28: kg CO2e/day | O28: =O26+O25 -> 98247.3848
G29: k (first order reaction rate constant (assumed to be constant in all cells) | H29: day-1 at 20° C | I29: 0.276 | J29: EPA | M29: over loaded system from CO2 CH4 and NO2 total emission | N29: kg CO2e/day | O29: =O27+O25 -> 110697.3804
B30: Calculation | G30: K20 (BOD rate constant@20°C) | H30: /day | I30: 0.23 | J30: EPA
G31: θ (Temperature Coefissient ) | I31: 1.056 | J31: EPA
B32: Proposed Calculation | G32: TN removal eff in UASB | I32: =UASB!$G$17/100 -> 0.5
B33: Category | C33: Item | D33: Unit | E33: Value
B34: Waste water treatment
B35: 1st step : UASB | C35: Waste water influent flow rate (Qww) | D35: m3/h | E35: =E6/24 -> 1498.541667
C36: BOD5 influent | D36: g/m3 | E36: =E7/I8 -> 793.1578947
C37: COD removed | D37: g/m3 | E37: =E7*I6/100 -> 1205.6
C38: COD Effluent | D38: g/m3 | E38: =E7-E37 -> 301.4
C39: BOD5 effluent | D39: g/m3 | E39: =E38/I8 -> 158.6315789
C40: BOD5 removed | D40: g/m3 | E40: =E36-E39 -> 634.5263158
C41: COD removal efficiency | E41: =E37/E7 -> 0.8
C42: TN after | D42: g/m3 | E42: =E8-(E8*I32) -> 60.28
C43: CO2 emission | D43: ton/h | E43: =(10^(-6))*E35*E7*I6/100*$I$19*((1-I23*$I$27)*I26) -> 0.119238361
C44: CH4 emission | D44: ton/h | E44: =(10^-6)*E35*E7*(I6/100)*I20*(I23*I27)*(I26) -> 0.04697268767
C45: NO2 emission | D45: ton/h | E45: =E35*E8*I28*44/28*(10^-6) -> 0.001419504298
B46: 2nd step : Activated Sludge | C46: Waste water influent flow rate (Qww) | D46: m3/h | E46: =E35 -> 1498.541667
C47: COD removed | D47: g/m3 | E47: =E38*I7/100 -> 276.1281377
C48: COD Effluent | D48: g/m3 | E48: =E38-E47 -> 25.2718623
C49: BOD5 removed | D49: g/m3 | E49: =E39*I7/100 -> 145.3305988
C50: BOD5 effluent | D50: g/m3 | E50: =E39-E49 -> 13.30098016
C51: CO2 emission (well managed system) | D51: ton/h | E51: =(10^(-6))*E46*E38*I7/100*I19*(1-I21*I27)*(1-I24) -> 0.1991362064
C52: CO2 emission (anoxic system) | D52: ton/h | E52: =(10^(-6))*E46*E38*I7/100*I19*(1-I22*I27)*(1-I25) -> 0.251907301
C53: CH4 emission (well managed system) | D53: ton/h | E53: =(10^-6)*E46*E38*I7/100*I20*(I21*I27)*(1-I24) -> 0
C54: CH4 emission (anoxic system) | D54: ton/h | E54: =(10^-6)*E46*E38*I7/100*I20*(I22*I27)*(1-I25) -> 0.02218946299
C55: NO2 emission | D55: ton/h | E55: =E46*E42*I28*44/28*(10^-6) -> 0.0007097521488
C56: Total COD removal | D56: g/m3 | E56: =E37+E47 -> 1481.728138
C57: Total BOD removal | D57: g/m3 | E57: =E40+E49 -> 779.8569146
C58: Total COD removal efficiency | D58: % | E58: =E56/E7*100 -> 98.32303502
C59: Total BOD removal efficiency | D59: % | E59: =E57/E36*100 -> 98.32303502
B60: At up to discharge point | C60: COD removed | D60: g/m3 | E60: =E48*I13/100 -> 12.63593115
C61: COD Effluent | D61: g/m3 | E61: =E48-E60 -> 12.63593115
C62: BOD5 effluent | D62: g/m3 | E62: =E61/I8 -> 6.650490078
B63: At discharge point | C63: COD removed | D63: g/m3 | E63: =E61*I14/100 -> 1.263593115
C64: COD Effluent | D64: g/m3 | E64: =E61-E63 -> 11.37233803
C65: BOD5 effluent | D65: g/m3 | E65: =E64/I8 -> 5.98544107

Sheet UASB + SWIMBED
B1: Upflow Anaerobic Sludge Blanket (UASB) + Swimbed
B4: Input | G4: Default Value | L4: Output
B5: Category | C5: Item | D5: Unit | E5: Value | G5: Item | H5: Unit | I5: Value | J5: Source | L5: Category | M5: Item | N5: Unit | O5: Value | P5: Unit | Q5: Value
B6: Waste water treatment | C6: Amount of waste water | D6: (m3/day) | E6: =UASBSWIMBED!G9 -> 35965 | G6: Oxygen Demand (OD) removal efficiency at first step (UASB) | H6: % | I6: =UASBSWIMBED!$G$12 -> 80 | J6: MOJ | L6: Waste water treatment | M6: COD after | N6: g/m3 | O6: =E48 -> 14.56864515 | P6: kg/day | Q6: =O6*E6/1000 -> 523.9613229 | R6: this calculation based on EPA equation
C7: COD concentration of raw water | D7: g/m3 | E7: =UASBSWIMBED!G10 -> 1507 | G7: Oxygen Demand (OD) removal efficiency at second step (SWIMBED) | H7: % | I7: 95 | J7: EES Lab calculation | M7: COD removed | N7: g/m3 | O7: =E55 -> 1492.431355 | P7: kg/day | Q7: =O7*E6/1000 -> 53675.29368
C8: Total Nitrogen (TN) | D8: mg/L or g/m3 | E8: =UASBSWIMBED!G11 -> 120.56 | G8: COD/BOD | I8: 1.9 | M8: COD removal | N8: % | O8: =$O$7/$E$7*100 -> 99.0332684 | P8: % | Q8: =$O$7/$E$7*100 -> 99.0332684
C9: Temperature | D9: °C | E9: =UASBSWIMBED!$G$6 -> 20 | G9: Amount gas generated/kg COD removal (anaerobic process) | H9: m3/kg COD removal | I9: 0.15 | J9: MOJ | M9: CO2 emission | N9: ton/h | O9: =E43+E52 -> 0.3260934405 | P9: kg/day | Q9: =O9*24*1000 -> 7826.242571
C10: Total hydraulic residence time in pond system (d) | D10: days | E10: =UASBSWIMBED!$G$7 -> 20 | G10: Conversion factor | H10: kg CH4/m3 | I10: 0.714 | J10: MOJ | M10: CH4 emission | N10: ton/h | O10: =E44+E53 -> 0.04697268767 | P10: kg/day | Q10: =O10*1000*24 -> 1127.344504
C11: Number of cells | D11: cells | E11: =UASBSWIMBED!$G$8 -> 2 | G11: CH4 Global Warming Potential | H11: kg CO2 e/kg CH4 | I11: 21 | J11: IPCC | M11: N2O emission | N11: ton/h | O11: =E45+E54 -> 0.002129256446 | P11: kg/day | Q11: =O11*1000*24 -> 51.10215471
C12: BOD rate constant@T/day (KT) | D12: /d | E12: =I30*((I31^(E9-20))) -> 0.23 | G12: N2O | H12: kg CO2 e/kg N2O | I12: 298 | J12: IPCC | L12: At up to discharge point | M12: COD after | N12: g/m3 | O12: =E60 -> 7.284322576 | P12: kg/day | Q12: =O12*E6/1000 -> 261.9806615 | R12: this calculation based on IGES DATA
B13: COD removal from sludge | C13: Generated amount of sludge | D13: kgDS/day | E13: =UASBSWIMBED!G18 -> 2168 | G13: COD degradation rate at up to discharge point | H13: % | I13: =UASBSWIMBED!$G$13 -> 50 | J13: MOJ | M13: GHG Emission | N13: kg/day | O13: =E59*E6/1000*I15*I16*I11 -> 1086.014634 | P13: kg/day | Q13: =O13 -> 1086.014634
B14: Electricity use | C14: Total Electricity consumption | D14: kWh/day | E14: =UASBSWIMBED!G19 -> 33651 | G14: COD degradation rate at discharge point | H14: % | I14: =UASBSWIMBED!$G$14 -> 10 | J14: MOJ | L14: At dischagre point | M14: COD after | N14: g/m3 | O14: =E63 -> 6.555890319 | P14: kg/day | Q14: =O14*E6/1000 -> 235.7825953
G15: Maximum methane formation potential | H15: kgCH4/kgCOD | I15: =UASBSWIMBED!$G$15 -> 0.21 | J15: MOJ | M15: GHG Emission | N15: kg/day | O15: =E62*E6/1000*I15*I16*I11 -> 108.6014634 | P15: kg/day | Q15: =O15 -> 108.6014634
G16: Model correction coeficient | I16: 0.94 | J16: MOJ | L16: From Sludge | M16: GHG Emission | N16: kg CO2e/day | O16: =E13*I17*I11 -> 6829.2 | P16: kg/day | Q16: =O16 -> 6829.2
G17: Methane emission/kg generated sludge | H17: kgCH4/kgDS | I17: =UASBSWIMBED!$G$16 -> 0.15 | J17: MOJ | L17: By Electricity Used | M17: CO2 emission | N17: kg CO2e/day | O17: =E14*I18 -> 25372.854 | P17: kg/day | Q17: =O17 -> 25372.854
G18: Electricity emission factor | H18: kgCO2/kWh | I18: 0.754 | J18: ADB, 2017 (also used by MOJ) | M18: GHG Emission | N18: kg CO2e/day | O18: =O17 -> 25372.854 | P18: kg/day | Q18: =O18 -> 25372.854
G19: CF CO2 | H19: g CO2/g Oxygen demand | I19: 1.375 | J19: EPA | L19: GHG emission | M19: From total CO2 emisson | N19: kg CO2e/day | O19: =Q9+Q17 -> 33199.09657
G20: CF CH4 | H20: g CH4/g Oxygen demand | I20: 0.5 | J20: EPA | M20: From total CH4 emisson | N20: kg CO2e/day | O20: =(Q10*21)+Q13+Q15+Q16 -> 31698.05068
G21: MCF ww for aerobic lagoon well managed | I21: 0 | J21: IPCC | M21: From total N2O emisson | N21: kg CO2e/day | O21: =Q11*I12 -> 15228.4421
G22: MCF ww for aerobic lagoon overloaded/anoxic | I22: 0.3 | J22: IPCC | M22: from CO2 and CH4 total emission | N22: kg CO2e/day | O22: =O19+O20 -> 64897.14725
G23: MCF ww for anaerobic sludge digester | I23: 0.8 | J23: IPCC | M23: from CO2 CH4 and NO2 total emission | N23: kg CO2e/day | O23: =O19+O20+O21 -> 80125.58936
G24: λ for aerobic lagoon well managed | I24: 0.65 | J24: Choubert et al (2009), Muller et al (2003), Munz (2008)
G25: λ for aerobic lagoon overloaded | I25: 0.45 | J25: Choubert et al (2009), Muller et al (2003), Munz (2008), Ammary (2004)
G26: λ for anaerobic process | I26: 0.1 | J26: Ammary (2004); Low and Chase (1999)
G27: BG CH4 | I27: 0.65 | J27: EPA
G28: NO2 Emission factor | H28: g N2O/g TKN | I28: 0.005 | J28: Chandran 2010 and IPCC
G29: k (first order reaction rate constant (assumed to be constant in all cells) | H29: day-1 at 20° C | I29: 0.276 | J29: EPA
B30: Calculation | G30: K20 (BOD rate constant@20°C) | H30: /day | I30: 0.23 | J30: EPA
G31: θ (Temperature Coefissient ) | I31: 1.056 | J31: EPA
B32: Proposed Calculation | G32: TN removal eff in UASB | I32: 0.5
B33: Category | C33: Item | D33: Unit | E33: Value | G33: TN removal eff in aeration tank | I33: =UASBSWIMBED!$G$17/100 -> 0.5
B34: Waste water treatment
B35: 1st step : UASB | C35: Waste water influent flow rate (Qww) | D35: m3/h | E35: =E6/24 -> 1498.541667
C36: BOD5 influent | D36: g/m3 | E36: =E7/I8 -> 793.1578947
C37: COD removed | D37: g/m3 | E37: =E7*I6/100 -> 1205.6
C38: COD Effluent | D38: g/m3 | E38: =E7-E37 -> 301.4
C39: BOD5 effluent | D39: g/m3 | E39: =E38/I8 -> 158.6315789
C40: BOD5 removed | D40: g/m3 | E40: =E36-E39 -> 634.5263158
C41: COD removal efficiency | E41: =E37/E7 -> 0.8
C42: TN after | D42: g/m3 | E42: =E8-(E8*I32) -> 60.28
C43: CO2 emission | D43: ton/h | E43: =(10^(-6))*E35*E7*I6/100*$I$19*(I26*(1-I23*$I$27)) -> 0.119238361
C44: CH4 emission | D44: ton/h | E44: =(10^-6)*E35*E7*(I6/100)*I20*(I23*I27)*(I26) -> 0.04697268767
C45: NO2 emission | D45: ton/h | E45: =E35*E8*I28*44/28*(10^-6) -> 0.001419504298
B46: 2nd step : Swimbed | C46: Waste water influent flow rate (Qww) | D46: m3/h | E46: =E35 -> 1498.541667
C47: COD removed | D47: g/m3 | E47: =E38-E48 -> 286.8313548
C48: COD Effluent | D48: g/m3 | E48: =E50*I8 -> 14.56864515
C49: BOD5 removed | D49: g/m3 | E49: =E39-E50 -> 150.963871
C50: BOD5 effluent | D50: g/m3 | E50: =E39*(1-EXP(-E12*5))*(1/(1+((I29*E10)/E11))^E11) -> 7.667707975
C51: COD removal efficiency | E51: =E47/E38 -> 0.9516634202
C52: CO2 emission | D52: ton/h | E52: =(10^(-6))*E46*E38*E51*I19*(1-I21*I27)*(1-I24) -> 0.2068550795
C53: CH4 emission | D53: ton/h | E53: =(10^-6)*E46*E38*E51*I20*(I21*I27)*(1-I24) -> 0
C54: NO2 emission | D54: ton/h | E54: =E46*E42*I28*44/28*(10^-6) -> 0.0007097521488
C55: Total COD removal | D55: g/m3 | E55: =E37+E47 -> 1492.431355
C56: Total BOD removal | D56: g/m3 | E56: =E40+E49 -> 785.4901868
C57: Total COD removal efficiency | D57: % | E57: =E55/E7*100 -> 99.0332684
C58: Total BOD removal efficiency | D58: % | E58: =E56/E36*100 -> 99.0332684
B59: At up to discharge point | C59: COD removed | D59: g/m3 | E59: =E48*I13/100 -> 7.284322576
C60: COD Effluent | D60: g/m3 | E60: =E48-E59 -> 7.284322576
C61: BOD5 effluent | D61: g/m3 | E61: =E60/I8 -> 3.833853988
B62: At discharge point | C62: COD removed | D62: g/m3 | E62: =E60*I14/100 -> 0.7284322576
C63: COD Effluent | D63: g/m3 | E63: =E60-E62 -> 6.555890319
C64: BOD5 effluent | D64: g/m3 | E64: =E63/I8 -> 3.450468589

Sheet Reduction in COD from 5 scen
B1: Reduction in COD from 5 Scenario
B3: Sources | C3: BAU | G3: Baseline | H3: Co-benefits
C4: Item | D4: Unit | E4: Without any treatment | F4: Anaerobic | G4: Aerated + Activated Sludge | H4: Swimbed | I4: UASB + AS | J4: UASB+Swimbed
E5: Value | F5: Value | G5: Value | H5: Value | I5: Value | J5: Value
B6: Waste water treatment | C6: Amount of waste water | D6: (m3/day) | E6: ='Anaerobic lagoon (BAU)'!$E$5 -> 35965 | F6: ='Anaerobic lagoon (BAU)'!$E$5 -> 35965 | G6: ='Aerated Lagoon + AS (Baseline)'!E10 -> 35965 | H6: ='Swimbed Scenario'!E6 -> 35965 | I6: ='UASB + AS'!E6 -> 35965 | J6: ='UASB + SWIMBED'!E6 -> 35965
C7: COD influent | D7: g/m3 | E7: ='Anaerobic lagoon (BAU)'!E6 -> 1507 | F7: ='Anaerobic lagoon (BAU)'!E6 -> 1507 | G7: ='Aerated Lagoon + AS (Baseline)'!E11 -> 1507 | H7: ='Swimbed Scenario'!E7 -> 1507 | I7: ='UASB + AS'!E7 -> 1507 | J7: ='UASB + SWIMBED'!E7 -> 1507
C8: COD effluent | D8: kg/day | E8: =E6*E7/1000 -> 54199.255 | F8: ='Anaerobic lagoon (BAU)'!R5 -> 27099.6275 | G8: ='Aerated Lagoon + AS (Baseline)'!R6 -> 4544.512637 | H8: ='Swimbed Scenario'!R6 -> 2095.845292 | I8: 908.9025275 | J8: ='UASB + SWIMBED'!Q6 -> 523.9613229
C9: COD removed per day | D9: kg/day | E9: =(E6*E7)/1000-E8 -> 0 | F9: =((F6*F7)/1000)-F8 -> 27099.6275 | G9: 49654.74236 | H9: 52103.40971 | I9: 53290.35247 | J9: 53675.29368
C10: Reduction in COD | D10: % | E10: 0 | F10: =F9/((F7*F6)/1000)*100 -> 50 | G10: =G9/((G7*G6)/1000)*100 -> 91.61517508 | H10: 96.13307362 | I10: 98.32303502 | J10: 99.0332684
B11: At Up to point of charge | C11: COD effluent | D11: kg/day | E11: 0 | F11: ='Anaerobic lagoon (BAU)'!R11 -> 13549.81375 | G11: ='Aerated Lagoon + AS (Baseline)'!R14 -> 2272.256319 | H11: ='Swimbed Scenario'!R12 -> 1047.922646 | I11: ='UASB + AS'!Q14 -> 454.4512637 | J11: ='UASB + SWIMBED'!Q12 -> 261.9806615
B12: At point of charge | C12: COD effluent | D12: kg/day | E12: 0 | F12: ='Anaerobic lagoon (BAU)'!R13 -> 12194.83237 | G12: ='Aerated Lagoon + AS (Baseline)'!R16 -> 2045.030687 | H12: ='Swimbed Scenario'!R14 -> 943.1303812 | I12: ='UASB + AS'!Q16 -> 409.0061374 | J12: ='UASB + SWIMBED'!Q14 -> 235.7825953
B13: Total COD removed | D13: kg/day | E13: 0 | F13: =(F6*F7)/1000-(F12) -> 42004.42262 | G13: =(G6*G7)/1000-(G12) -> 52154.22431 | H13: 53256.12462 | I13: 53790.24886 | J13: 53963.4724
D14: g/m3 | E14: 0 | F14: =(F13*1000)/F6 -> 1167.925 | G14: =(G13*1000)/G6 -> 1450.13831 | H14: =(H13*1000)/H6 -> 1480.776439 | I14: =(I13*1000)/I6 -> 1495.627662 | J14: =(J13*1000)/J6 -> 1500.44411
B15: COD Final | D15: g/m4 | E15: =E7-E14 -> 1507 | F15: 339.075 | G15: 56.86169017 | H15: 26.22356127 | I15: 11.37233803 | J15: 6.555890319

Sheet REFERENCE
A1: Scenarios | B1: Parameter | C1: Unit | D1: Value | E1: Source | F1: Reference
A2: Anaerobic Lagoon | B2: Amount of waste water | C2: m3/day | D2: 35965 | E2: MOJ | G2: input data
B3: COD before | C3: mg/L | D3: 1507 | E3: MOJ
B4: TKN | C4: mg/L | D4: 12.56
B5: Generate amount of slude | C5: kg DS/day | D5: 5306 | E5: MOJ
B6: Elctricity consumption | C6: kWh/day | D6: 42561 | E6: MOJ
B7: Oxygen Demand (OD) removal efficiency at first step | C7: % | D7: 50 | E7: MOJ
B8: COD/BOD | D8: 1.9 | E8: calculation (supporting details on report)
B9: Amount gas generated/kg COD removal (anaerobic process) | C9: m3/kg COD removal | D9: 0.15 | E9: MOJ
B10: Conversion factor | C10: kg CH4/m3 | D10: 0.714 | E10: MOJ
B11: CH4 Global Warming Potential | C11: kg CO2 e/kg CH4 | D11: 21 | E11: MOJ
B12: N2O | C12: kg CO2 e/kg N2O | D12: 298 | E12: MOJ
B13: COD degradation rate at up to discharge point | C13: % | D13: 50 | E13: MOJ
B14: COD degradation rate at discharge point | C14: % | D14: 10 | E14: MOJ
B15: Maximum methane formation potential | C15: kgCH4/kgCOD | D15: 0.21 | E15: MOJ
B16: Model correction coeficient | D16: 0.94 | E16: MOJ
B17: Methane emission/kg generated sludge | C17: kgCH4/kgDS | D17: 0.15 | E17: MOJ
B18: Electricity emission factor | C18: kgCO2/kWh | D18: 0.754 | E18: MOJ
B19: CF CO2 | C19: g CO2/g Oxygen demand | D19: 1.375 | E19: EPA
B20: CH CH4 | C20: g CH4/g Oxygen demand | D20: 0.5 | E20: EPA
B21: MCF ww for anaerobic lagoon | D21: 0.8 | E21: EPA
B22: λ for anaerobic lagoon | D22: 0.1 | E22: EPA
B23: BG CH4 | D23: 0.65 | E23: EPA
B24: NO2 Emission factor | C24: g N2O/g TKN | D24: 0.005 | E24: EPA
B25: TKN removal efficiency of Anaerobic lagoon | D25: 0.24
A26: Aerobic lagoon + AS | B26: Temperature | C26: °C | D26: 20 | E26: Assumption
B27: Total hydraulic residence time in pond system (d) | C27: days | D27: 20 | E27: Assumption
B28: Number of cells | C28: cells | D28: 1 | E28: Assumption
B29: BOD rate constant@T/day (KT) | C29: /d | D29: 0.23 | E29: EPA
B30: Amount of waste water | C30: m3/day | D30: 35965 | E30: MOJ
B31: COD concentration of raw water | C31: mg/L | D31: 1507 | E31: MOJ
B32: Total Kjehdahl Nitrogen (TKN) | C32: mg/L | D32: 120.56
B33: Generated amount of sludge | C33: kgDS/day | D33: 15294 | E33: MOJ
B34: Total Electricity consumption | C34: kWh/day | D34: 155917 | E34: MOJ
B35: Oxygen Demand (OD) removal efficiency at first step | C35: % | D35: 89.51896886
B36: COD/BOD | D36: 1.9
B37: Amount gas generated/kg COD removal (anaerobic process) | C37: m3/kg COD removal | D37: 0.15 | E37: MOJ
B38: Conversion factor | C38: kg CH4/m3 | D38: 0.714 | E38: MOJ
B39: CH4 Global Warming Potential | C39: kg CO2 e/kg CH4 | D39: 21 | E39: MOJ
B40: N2O | C40: kg CO2 e/kg N2O | D40: 298 | E40: MOJ
B41: COD degradation rate at up to discharge point | C41: % | D41: 50 | E41: MOJ
B42: COD degradation rate at discharge point | C42: % | D42: 10 | E42: MOJ
B43: Maximum methane formation potential | C43: kgCH4/kgCOD | D43: 0.21 | E43: MOJ
B44: Model correction coeficient | D44: 0.94 | E44: MOJ
B45: Methane emission/kg generated sludge | C45: kgCH4/kgDS | D45: 0.15 | E45: MOJ
B46: Electricity emission factor | C46: kgCO2/kWh | D46: 0.754
B47: CF CO2 | C47: g CO2/g Oxygen demand | D47: 1.375 | E47: EPA
B48: CF CH4 | C48: g CH4/g Oxygen demand | D48: 0.5 | E48: EPA
B49: MCF ww for aerobic lagoon well managed | D49: 0 | E49: EPA
B50: MCF ww for aerobic lagoon overloaded/anoxic | D50: 0.3 | E50: EPA
B51: λ for aerobic lagoon well managed | D51: 0.65 | E51: EPA
B52: λ for aerobic lagoon overloaded | D52: 0.45 | E52: EPA
B53: BG CH4 | D53: 0.65 | E53: EPA
B54: NO2 Emission factor | C54: g N2O/g TKN | D54: 0.005 | E54: EPA
B55: Oxygen Demand (OD) removal efficiency at clariffier settle | D55: 0.2
B56: k (first order reaction rate constant (assumed to be constant in all cells) | C56: day-1 at 20° C | D56: 0.276 | E56: EPA
B57: K20 (BOD rate constant@20°C) | C57: /day | D57: 0.23
B58: θ (Temperature Coefissient ) | D58: 1.056
B59: TKN removal eff in Aeration tank | D59: 0.5
B60: TKN removal eff in clarrifier settler | D60: 0.2
A61: SWIMBED
